[Event "Srdja Dragasevic Memorial-A 2024"]
[Site "Cetinje"]
[Date "2024.06.28"]
[Round "8.1"]
[White "Karthik Venkataraman"]
[Black "Petrov, Nikita"]
[Result "0-1"]
[ECO "C48"]
[WhiteElo "2590"]
[BlackElo "2566"]
[Annotator "TA"]
[PlyCount "82"]
[EventDate "2024.06.23"]
[EventType "swiss"]
[EventCountry "MNE"]
[SourceTitle "playchess.com"]
[Source "ChessBase"]
[SourceQuality "1"]
[TimeControl "40/5400+30:1800+30"]

{[%evp 9,82,0,0,0,0,-12,-8,-20,-8,-10,-14,-20,2,0,9,-3,12,0,16,16,12,5,20,19,14,15,21,0,23,2,0,0,0,0,0,0,0,0,0,0,0,-8,0,0,0,0,0,0,0,0,0,0,0,0,0,0,0,0,0,0,0,0,0,0,0,0,0,-1747,-1619,-962,-928,-29968,-29968,-29994,-29995]} 1. e4 {[%emt 0:00:03]} e5 {[%emt 0:00:09]} 2. Nf3 {[%emt 0:00:06]} Nc6 {[%emt 0:00:08]} 3. Nc3 {[%emt 0:00:05]} Nf6 {[%emt 0:00:07]} 4. Bb5 {[%emt 0:00:05]} Nd4 {[%emt 0:00:26]} 5. O-O {[%emt 0:00:22]} c6 {[%emt 0:00:57]} 6. Bc4 {[%emt 0:00:09] C48: Four Knights: 4 Bb5, replies other than 4...Bb4.} d6 {[%emt 0:00:29]} 7. a4 $146 {[%emt 0:06:22]} ({Predecessor:} 7. h3 b5 8. Bd3 Nxf3+ 9. Qxf3 g5 10. Be2 g4 11. hxg4 Bxg4 12. Qe3 b4 13. Bxg4 Nxg4 {0-1 Duda,J (2738)-So,W (2772) Aimchess US Rapid Prelim 2021 (2)}) 7... Bg4 {[%emt 0:06:32] Strongly threatening ...Bxf3.} 8. Be2 {[%emt 0:00:39]} Nxe2+ {[%emt 0:00:34]} 9. Qxe2 {[%emt 0:00:05]} Be7 {[%emt 0:01:15]} 10. h3 {[%emt 0:00:39]} Bxf3 {[%emt 0:01:13]} 11. Qxf3 {[%emt 0:00:09]} O-O {[%emt 0:00:59]} 12. d3 {[%emt 0:01:17]} Nd7 {[%emt 0:02:30]} 13. Be3 {[%emt 0:08:23]} Bg5 {[%emt 0:02:17]} 14. a5 {[%emt 0:00:17]} Bxe3 {[%emt 0:10:57]} 15. Qxe3 {[%emt 0:00:17]} Nc5 {[%emt 0:04:06]} 16. f4 {[%emt 0:01:28]} exf4 {[%emt 0:03:31]} 17. Rxf4 {[%emt 0:00:35]} Ne6 {[%emt 0:05:18]} 18. Rf2 {[%emt 0:00:48]} b5 {[%emt 0:02:03]} 19. axb6 {[%emt 0:03:34]} axb6 {[%emt 0:04:07]} 20. Rff1 {[%emt 0:00:17]} (20. Rxa8 Qxa8 21. Kh2 (21. Qxb6 Rb8 $11) 21... b5) 20... b5 {[%emt 0:02:50]} 21. Ne2 {[%emt 0:04:24]} Rxa1 {[%emt 0:06:55]} 22. Rxa1 {[%emt 0:00:10]} d5 {[%emt 0:00:03]} 23. e5 {[%emt 0:12:54]} d4 {[%emt 0:02:20]} 24. Qe4 {[%emt 0:00:19]} c5 {[%emt 0:00:45]} 25. Nf4 {[%emt 0:09:38]} Nxf4 26. Qxf4 {[%emt 0:00:17]} Qd5 {[%emt 0:05:05]} 27. Ra7 {[%emt 0:02:33]} Re8 {[%emt 0:13:14]} 28. Rc7 {[%emt 0:02:51]} h6 {[%emt 0:04:56]} 29. e6 Qxe6 {[%emt 0:00:11]} 30. Rxc5 {[%emt 0:01:21]} Qe1+ {[%emt 0:09:24]} 31. Kh2 {[%emt 0:00:08]} Qe3 $1 {[%emt 0:00:13]} 32. Qf3 {[%emt 0:19:08]} b4 {[%emt 0:01:47][%cal Ob4b3]} 33. b3 {[%emt 0:00:29]} Qe7 {[%emt 0:00:52]} 34. Rc4 {[%emt 0:00:35]} g5 {[%emt 0:02:49]} 35. Qg3 {[%emt 0:01:53]} (35. Rxd4 $2 {perishes.} Qe5+ 36. g3 Qxd4 $19) 35... Qf6 {[%emt 0:00:36] ...Re3 would now be deadly.} 36. Qf3 {[%emt 0:10:59]} (36. Rxb4 $2 {loses.} Re3 37. Qb8+ Kh7 $19) 36... Qd6+ {[%emt 0:01:14]} 37. Qg3 {[%emt 0:00:05]} Qf6 {[%emt 0:00:03] aiming for ...Re3.} 38. Rxb4 $2 {[%emt 0:15:25][%mdl 8192] [#]} (38. Qf3 $11 Qd6+ 39. Qg3 Qf6) 38... Re3 $1 $19 {[%emt 0:00:27]} 39. Qc7 {[%emt 0:00:01] [#]} g4 $1 {[%emt 0:04:22][%mdl 512] ( -> ...Kg7)} 40. Rb8+ {[%emt 0:00:00]} (40. Ra4 g3+) 40... Kg7 {[%emt 0:00:00]} 41. Rb5 {[%emt 0:06:50]} Qf2 {[%emt 0:06:09]} 0-1

[Event "Srdja Dragasevic Memorial-A 2024"]
[Site "Cetinje"]
[Date "2024.06.28"]
[Round "8.2"]
[White "Djukic, Nikola"]
[Black "Mammadova, Narmin"]
[Result "1/2-1/2"]
[ECO "C42"]
[WhiteElo "2532"]
[BlackElo "2277"]
[Annotator "TA"]
[PlyCount "77"]
[EventDate "2024.06.23"]
[EventType "swiss"]
[EventCountry "MNE"]
[SourceTitle "playchess.com"]
[Source "ChessBase"]
[SourceQuality "1"]
[TimeControl "40/5400+30:1800+30"]

{[%evp 13,77,8,7,0,4,4,32,2,0,0,0,0,0,0,0,0,0,-13,0,0,0,0,0,0,29,17,8,10,29,9,11,10,10,6,8,0,18,0,0,-7,0,0,0,0,0,0,0,-5,-4,-6,0,0,-6,-8,-7,0,-13,-15,-10,-15,0,-19,0,-5,0,-12]} 1. e4 {[%emt 0:00:03]} e5 {[%emt 0:03:27]} 2. Nf3 {[%emt 0:00:09]} Nf6 {[%emt 0:00:33]} 3. Nxe5 {[%emt 0:05:17]} d6 {[%emt 0:00:26]} 4. Nf3 {[%emt 0:00:06]} Nxe4 {[%emt 0:00:21]} 5. Bd3 {[%emt 0:05:36]} Nf6 {[%emt 0:00:49]} 6. h3 {[%emt 0:00:07]} Be7 {[%emt 0:01:13]} 7. O-O {[%emt 0:01:06]} O-O {[%emt 0:00:59]} 8. c3 {[%emt 0:00:14]} d5 {[%emt 0:03:02]} 9. Bc2 {[%emt 0:00:10]} c6 {[%emt 0:01:30]} 10. Re1 {[%emt 0:03:55] White is slightly better.} Nbd7 {[%emt 0:03:59]} 11. d4 {[%emt 0:00:59]} Bd6 {[%emt 0:01:11] Prevents Bf4} 12. Nbd2 {[%emt 0:16:20]} Re8 {[%emt 0:02:45] Dodges Ne5} 13. a4 {[%emt 0:00:57]} a5 {[%emt 0:03:50]} 14. b3 {[%emt 0:05:16]} b6 {[%emt 0:06:57]} 15. Bb2 {[%emt 0:07:11]} Ba6 {[%emt 0:02:39]} 16. c4 {[%emt 0:02:51]} Qc7 {[%emt 0:03:13]} 17. Bd3 {[%emt 0:10:30]} Rxe1+ 18. Nxe1 {[%emt 0:00:08][%cal Bf3e1,Be1c2,Bc2e3,Be3c4][%mdl 32]} Qb7 {[%emt 0:10:27]} 19. Nc2 {[%emt 0:07:09]} Re8 {[%emt 0:11:23]} 20. Ne3 {[%emt 0:00:43]} c5 {[%emt 0:13:33]} 21. Nf3 {[%emt 0:05:24]} cxd4 {[%emt 0:03:50] The position is equal.} 22. Bxd4 {[%emt 0:00:09]} dxc4 {[%emt 0:08:07]} 23. Nxc4 {[%emt 0:00:32]} Bb4 {[%emt 0:02:04]} 24. Rc1 {[%emt 0:03:02]} h6 {[%emt 0:02:37]} 25. Rc2 {[%emt 0:08:29]} Qb8 {[%emt 0:03:59]} 26. Re2 {[%emt 0:02:08]} Rxe2 {[%emt 0:02:30]} 27. Qxe2 {[%emt 0:00:07][%cal Oc4b6]} Bc5 {[%emt 0:01:34]} 28. Bb2 {[%emt 0:02:48]} Bb7 {[%emt 0:01:19]} 29. Nfe5 {[%emt 0:01:03] [#] Hoping for Nxd7.} Qe8 {[%emt 0:03:03]} 30. Qd1 {[%emt 0:05:49]} Qe6 {[%emt 0:01:46]} 31. Bc2 {[%emt 0:05:05]} Nxe5 {[%emt 0:02:06]} 32. Nxe5 {[%emt 0:00:06]} Bd5 {[%emt 0:00:15]} 33. Bd4 {[%emt 0:01:37]} (33. Qd3 {is more complex.} h5 34. Qg3 Bb7 35. Qg5) 33... Bxd4 {[%emt 0:00:49]} 34. Qxd4 {[%emt 0:00:05]} g6 {[%emt 0:00:29]} 35. Qe3 {[%emt 0:01:23]} Kg7 {[%emt 0:00:13]} 36. Qc3 {[%emt 0:00:32]} Kg8 {[%emt 0:00:49]} 37. Qe3 {[%emt 0:00:46]} Kg7 {[%emt 0:00:03]} 38. Qc3 {[%emt 0:00:08]} Kg8 {[%emt 0:00:00]} 39. Qe3 {[%emt 0:01:06] A balanced but interesting game.   Weighted Error Value: White=0.04 (flawless) /Black=0.05 (flawless) .  Inaccurate:     	White=1     	Black=2      OK:         	White=6     	Black=14} 1/2-1/2

[Event "Srdja Dragasevic Memorial-A 2024"]
[Site "Cetinje"]
[Date "2024.06.28"]
[Round "8.3"]
[White "Yaksin, Oleg"]
[Black "Saraci, Nderim"]
[Result "0-1"]
[ECO "A34"]
[WhiteElo "2389"]
[BlackElo "2449"]
[Annotator "TA"]
[PlyCount "96"]
[EventDate "2024.06.23"]
[EventType "swiss"]
[EventCountry "MNE"]
[SourceTitle "playchess.com"]
[Source "ChessBase"]
[SourceQuality "1"]
[TimeControl "40/5400+30:1800+30"]

{[%evp 12,96,18,17,20,36,27,0,14,0,5,-8,-16,-7,-18,-3,-24,-28,0,-29,-29,-25,-41,-26,0,0,8,8,9,15,0,20,31,0,38,31,38,31,44,30,37,25,27,0,0,-38,-35,-59,-49,-1207,-42,-41,-41,-49,0,-342,-309,-481,-508,-1310,-1225,-1178,-1121,-1229,-968,-961,-961,-5675,-4009,-5281,-5542,-1440,-5102,-7100,-5118,-29977,-29978,-29978,-29979,-29981,-29982,-29988,-29987,-29987,-29980,-29975,-29975]} 1. Nf3 {[%emt 0:00:54]} Nf6 {[%emt 0:00:42][%cal Bg8f6,Bf6d5,Bd5c7][%mdl 32]} 2. g3 {[%emt 0:00:05]} c5 {[%emt 0:04:27]} 3. c4 {[%emt 0:02:46]} Nc6 {[%emt 0:05:45]} 4. Bg2 {[%emt 0:01:17]} d5 {[%emt 0:02:18]} 5. cxd5 {[%emt 0:01:43]} Nxd5 {[%emt 0:02:20]} 6. Nc3 {[%emt 0:00:12]} Nc7 {[%emt 0:05:13]} 7. a3 {[%emt 0:06:30]} e6 {[%emt 0:05:57]} 8. O-O {[%emt 0:10:45]} Be7 {[%emt 0:00:19]} 9. d3 {[%emt 0:07:21]} O-O {[%emt 0:01:46] The position is equal.} 10. Bf4 {[%emt 0:00:02]} Nd5 {[%emt 0:14:19]} 11. Nxd5 {[%emt 0:04:58]} exd5 {[%emt 0:01:24]} 12. d4 {[%emt 0:01:15]} c4 {[%emt 0:08:41]} 13. b3 {[%emt 0:04:39]} b5 {[%emt 0:03:59]} 14. bxc4 bxc4 {[%emt 0:02:13]} 15. Ne5 (15. Nd2 $5) 15... Nxe5 {[%emt 0:02:00]} 16. Bxe5 {[%emt 0:29:59]} Be6 {[%emt 0:04:51]} 17. Qa4 {[%emt 0:01:30]} g5 {[%emt 0:02:29]} 18. e4 {[%emt 0:03:48]} dxe4 {[%emt 0:13:18]} 19. Bxe4 {[%emt 0:00:15] d5 is the strong threat.} Bd5 $1 {[%emt 0:00:40] [#]} 20. Bc7 $1 {[%emt 0:02:29]} Qxc7 {[%emt 0:01:50]} 21. Bxd5 {[%emt 0:00:02]} Rac8 {[%emt 0:01:54]} 22. Qc2 {[%emt 0:12:02]} c3 {[%emt 0:05:30]} 23. Qf5 {[%emt 0:00:40] Intending Be4 and mate. Black is weak on the light squares} Qd6 {[%emt 0:00:48]} 24. Be4 {[%emt 0:00:32][%csl Ge4][%cal Rf5h7]} Qh6 {[%emt 0:00:05]} 25. Rfb1 {[%emt 0:02:00]} Rc7 {[%emt 0:00:53]} 26. Rb3 {[%emt 0:02:24]} Bf6 {[%emt 0:02:17]} 27. Rd1 {[%emt 0:02:47]} Re8 {[%emt 0:04:31]} 28. Bc2 {[%emt 0:02:24]} Qg6 {[%emt 0:01:36]} 29. Qb5 {[%emt 0:00:32] Dodges Re2} Qxc2 {[%emt 0:00:42]} 30. Qxe8+ {[%emt 0:00:02]} Kg7 {[%emt 0:00:07]} 31. Rbb1 {[%emt 0:00:24] [#]} Bxd4 $1 {[%emt 0:01:24]} 32. Rf1 {[%emt 0:01:24]} Qf5 {[%emt 0:01:36]} (32... Bxf2+ $1 $15 33. Kh1 Qd3 34. Qe5+ Kg6) 33. Rbc1 $2 {[%emt 0:00:40][%mdl 8192] Black converts the advantage convincingly.} (33. Rb5 $1 $11 {and White stays safe.} Bc5 34. Qe2) 33... c2 $19 {[%emt 0:00:30]} 34. Qd8 {[%emt 0:00:01]} (34. Qe2 $142) 34... Rd7 {[%emt 0:00:28] Active counter play!} 35. Qe8 {[%emt 0:00:18] [#]} (35. Qb8 $142 Bb6 36. Qa8) 35... Bxf2+ $1 {[%emt 0:00:26][%mdl 512]} 36. Rxf2 {[%emt 0:00:46]} Rd1+ {[%emt 0:00:01]} 37. Qe1 {[%emt 0:00:32]} Qd3 {[%emt 0:01:02]} 38. Qf1 {[%emt 0:00:56]} Rxf1+ {[%emt 0:00:06]} 39. Rcxf1 {[%emt 0:00:24][%mdl 4096] Endgame. KQ-KRR} f5 {[%emt 0:00:55]} (39... Qxa3 40. Rxc2 a5 41. Rcf2 $17) 40. Rc1 {[%emt 0:00:00]} Qd1+ {[%emt 0:00:00]} (40... Qxa3 41. Rcxc2 Qa1+ 42. Kg2 $17) 41. Rf1 {[%emt 0:00:35]} Qd2 {[%emt 0:00:24]} 42. a4 {[%emt 0:12:15]} a5 {[%emt 0:00:47] ...f4 would now be deadly.} 43. h3 {[%emt 0:00:48]} f4 {[%emt 0:06:47] Black mates.} 44. gxf4 {[%emt 0:01:41]} gxf4 {[%emt 0:00:10]} 45. Kh1 {[%emt 0:00:59] [#]} f3 $1 {[%emt 0:00:48][%csl Gf3][%cal Rd2g2][%mdl 512]} 46. Rg1+ {[%emt 0:00:08]} (46. Rxc2 Qxc2) 46... Kf6 {[%emt 0:00:32]} 47. Rcf1 {[%emt 0:00:33]} f2 {[%emt 0:01:00]} 48. Kg2 {[%emt 0:00:12] [#]} c1=Q $1 {[%emt 0:00:17][%mdl 512] Weighted Error Value: White=0.87/Black=0.04 (flawless) .  Loses game:     	White=1     	---        Missed win:     	---       	Black=1      Mistake:       	White=2     	Black=1      Inaccurate:     	White=4     	Black=3      OK:         	White=12    	Black=12     Best:        	White=2     	Black=3      Strong:       	---       	Black=1      Brilliant:      	---       	Black=1} 0-1

[Event "Srdja Dragasevic Memorial-A 2024"]
[Site "Cetinje"]
[Date "2024.06.28"]
[Round "8.4"]
[White "Milanovic, Danilo"]
[Black "Sukovic, Andrej"]
[Result "1-0"]
[ECO "E48"]
[WhiteElo "2438"]
[BlackElo "2350"]
[Annotator "TA"]
[PlyCount "83"]
[EventDate "2024.06.23"]
[EventType "swiss"]
[EventCountry "MNE"]
[SourceTitle "playchess.com"]
[Source "ChessBase"]
[SourceQuality "1"]
[TimeControl "40/5400+30:1800+30"]

{[%evp 17,83,35,40,-8,45,-44,-48,-63,-48,-52,-52,-73,-64,-59,-63,-102,-72,-91,-89,-112,-73,-85,-79,-65,-51,-53,-66,-145,-102,-103,-40,-62,-32,-37,-27,-83,-75,-105,-49,-120,255,158,300,339,309,333,325,333,537,301,393,384,377,370,370,0,344,350,350,324,302,268,1418,1382,1382,1344,29998,29999]} 1. d4 {[%emt 0:06:53]} e6 {[%emt 0:01:27]} 2. c4 {[%emt 0:00:29]} Nf6 {[%emt 0:00:09]} 3. Nc3 {[%emt 0:00:24]} Bb4 {[%emt 0:00:09]} 4. e3 {[%emt 0:00:36]} O-O {[%emt 0:00:09]} 5. Bd3 {[%emt 0:01:47]} Re8 {[%emt 0:00:12]} 6. Nge2 {[%emt 0:15:52]} d5 {[%emt 0:00:09]} 7. cxd5 {[%emt 0:00:14]} exd5 {[%emt 0:00:09]} 8. O-O {[%emt 0:00:09] 8.0-0 is better than 8.Bd2.} Nbd7 {[%emt 0:00:17] E48: Nimzo-Indian: Rubinstein: 5 Bd3 d5 including 6 Ne2, but excluding 6 a3.} 9. Qb3 {[%emt 0:12:08]} Bd6 {[%emt 0:00:09]} 10. f3 {[%emt 0:01:24]} (10. Nxd5 $14 Nxd5 11. Qxd5) 10... c5 {[%emt 0:19:15]} (10... c6 $11) 11. Qc2 {[%emt 0:03:11]} (11. Nxd5 $14 cxd4 12. Nxf6+ (12. Nxd4 Nc5 $11) (12. exd4 Nxd5 13. Qxd5 Nc5 $15) 12... Qxf6 13. exd4 (13. Nxd4 Nc5 $11)) 11... a6 $15 {[%emt 0:10:37]} 12. Bd2 $146 {[%emt 0:01:43]} ({Predecessor:} 12. g4 c4 13. Bf5 g6 14. Bxd7 Bxd7 15. g5 Bf5 16. Qd1 Nh5 17. f4 Bf8 18. Ng3 Nxg3 19. hxg3 {½-½ Tilicheev,V (2487)-Injac,T (2439) SRB-ch sf Paracin 2024 (6)}) 12... Qc7 {[%emt 0:03:08]} 13. h3 {[%emt 0:06:40]} g6 {[%emt 0:03:35]} 14. Qd1 {[%emt 0:00:28]} b5 {[%emt 0:00:31]} 15. a3 {[%emt 0:00:37]} Nb6 {[%emt 0:03:09]} 16. b4 {[%emt 0:08:35]} cxd4 {[%emt 0:04:55]} 17. exd4 {[%emt 0:01:29]} Nh5 $1 {[%emt 0:06:18]} 18. Rc1 {[%emt 0:04:07]} Qb8 {[%emt 0:06:00]} 19. Rf2 {[%emt 0:02:51]} Ra7 {[%emt 0:02:32]} 20. g4 {[%emt 0:05:17]} Nf4 {[%emt 0:00:21]} 21. Nxf4 Bxf4 {[%emt 0:00:05]} 22. Ne2 {[%emt 0:00:10]} (22. Bxf4 $15 Qxf4 23. Ne2) 22... Bd6 {[%emt 0:01:20]} 23. Bg5 {[%emt 0:05:12]} Rd7 {[%emt 0:05:13]} ({Better is} 23... Nc4 $17 24. f4 Be7 (24... Nxa3 25. Nc3 $11)) 24. Rc3 {[%emt 0:06:31]} Bb7 {[%emt 0:03:15]} 25. f4 {[%emt 0:02:00]} Be7 {[%emt 0:02:37]} 26. Bxe7 {[%emt 0:03:38]} (26. Qc1 $11) 26... Rdxe7 $17 {[%emt 0:00:05]} 27. f5 {[%emt 0:00:21]} Re3 {[%emt 0:05:24]} (27... Nc4 $1 $17 28. fxg6 hxg6 (28... fxg6 29. Qc1 $17)) 28. Qc1 {[%emt 0:01:38]} (28. fxg6 $15 hxg6 29. Qf1) 28... Na4 $2 {[%emt 0:05:23][%mdl 8192]} (28... Rxh3 $2 29. fxg6 fxg6 (29... hxg6 $2 30. Bxg6 Rxc3 31. Bxf7+ Kh7 32. Qxc3 $18) 30. Bxg6 Rxc3 31. Bf7+ Kh8 32. Qxc3 $18 (32. Nxc3 $2 Qg3+ 33. Kf1 Qh3+ 34. Kg1 Qxg4+ 35. Kf1 Qh4 $19)) (28... Nc4 $17 {aiming for ...Qd6.} 29. Qf1 (29. Bxc4 $2 Rxc3 30. Qxc3 dxc4 $19) 29... Qd8 30. fxg6 fxg6) 29. fxg6 {[%emt 0:02:23]} hxg6 {[%emt 0:00:56]} (29... fxg6 $16 30. Rc7 R8e7 (30... Rxd3 $2 {loses.} 31. Rff7 $18) 31. Rxe7 Rxe7) 30. Rc7 $1 $18 {[%emt 0:00:12]} R3e7 {[%emt 0:02:09]} (30... Rxd3 $2 {perishes.} 31. Rfxf7 $18) 31. Rxe7 {[%emt 0:00:12]} Rxe7 {[%emt 0:00:07]} 32. Qg5 $1 {[%emt 0:02:23]} Qd6 $2 {[%emt 0:01:55]} (32... Qe8 {was worth a try.} 33. Nf4 Re1+ 34. Kg2 Qe7) 33. Nf4 {[%emt 0:01:49]} Nc3 {[%emt 0:03:25]} 34. Nh5 {[%emt 0:02:03]} Re1+ {[%emt 0:00:43]} 35. Kg2 {[%emt 0:03:21]} Ne4 {[%emt 0:00:41]} 36. Nf6+ $2 {[%emt 0:00:33]} (36. Bxe4 $1 $18 {[%cal Og5h6] White threatens Qh6! and mate.} dxe4 37. Nf6+ Kf8 38. d5) 36... Kf8 $2 {[%emt 0:02:23][%mdl 8192]} (36... Qxf6 $1 $11 {and Black has nothing to worry.} 37. Qxf6 Nxf6 38. Rxf6 Rc1) 37. Bxe4 $18 {[%emt 0:00:10]} dxe4 {[%emt 0:00:07]} 38. d5 {[%emt 0:00:04]} e3 {[%emt 0:01:59]} 39. Rf4 $1 {[%emt 0:00:08]} Rd1 $2 {[%emt 0:02:31] [#]} (39... Re2+ 40. Kg1 Re1+ 41. Kg2 Re2+ 42. Kf3 Rh2 43. Qh6+ Ke7 44. Re4+ Kxf6 45. g5+ Kf5) 40. Qh6+ $1 $18 {[%emt 0:00:00]} Ke7 {[%emt 0:00:00] [#]} 41. Re4+ $1 {[%emt 0:00:32]} Kxf6 {[%emt 0:01:27]} 42. Qh8+ {[%emt 0:00:04]} 1-0

[Event "Srdja Dragasevic Memorial-A 2024"]
[Site "Cetinje"]
[Date "2024.06.28"]
[Round "8.5"]
[White "Mammadov, Zaur"]
[Black "Kosic, Dragan"]
[Result "1-0"]
[ECO "C02"]
[WhiteElo "2426"]
[BlackElo "2382"]
[Annotator "RC"]
[PlyCount "79"]
[EventDate "2024.06.23"]
[EventType "swiss"]
[EventCountry "MNE"]
[SourceTitle "playchess.com"]
[Source "ChessBase"]
[SourceQuality "1"]
[TimeControl "40/5400+30:1800+30"]

1. e4 {[%emt 0:01:40]} e6 {[%emt 0:08:31]} 2. d4 {[%emt 0:00:02]} d5 {[%emt 0:00:11]} 3. e5 {[%emt 0:00:06]} c5 {[%emt 0:00:05]} 4. c3 {[%emt 0:00:02]} Nc6 {[%emt 0:00:09]} 5. Nf3 {[%emt 0:00:05]} Bd7 {[%emt 0:00:05]} 6. Na3 {[%emt 0:00:07]} Qb6 {[%emt 0:02:04]} 7. Nc2 {[%emt 0:00:02]} cxd4 {[%emt 0:01:12]} 8. cxd4 {[%emt 0:00:08]} Nb4 {[%emt 0:00:15]} 9. Ne3 {[%emt 0:00:28]} Bb5 {[%emt 0:03:36]} 10. a3 {[%emt 0:00:02]} Bxf1 {[%emt 0:00:52]} 11. Kxf1 {[%emt 0:00:02]} Nc6 {[%emt 0:03:52]} 12. g3 {[%emt 0:00:19]} Nge7 {[%emt 0:07:03]} 13. h4 {[%emt 0:00:15]} Na5 {[%emt 0:03:11]} 14. b4 {[%emt 0:02:41]} Nc4 {[%emt 0:04:26]} 15. Kg2 {[%emt 0:00:20]} Rc8 {[%emt 0:05:10]} 16. h5 {[%emt 0:01:17]} h6 {[%emt 0:00:28]} 17. Rb1 {[%emt 0:04:58]} Qb5 {[%emt 0:12:05]} 18. a4 {[%emt 0:01:55]} Qd7 {[%emt 0:00:07]} 19. b5 {[%emt 0:01:58]} b6 {[%emt 0:00:52]} 20. Ne1 {[%emt 0:02:08]} Nxe3+ {[%emt 0:03:35]} 21. fxe3 {[%emt 0:07:58]} g6 {[%emt 0:04:59]} 22. hxg6 fxg6 {[%emt 0:04:55]} 23. Qd3 {[%emt 0:15:43]} Rc4 {[%emt 0:10:38]} 24. Nf3 {[%emt 0:04:01]} Rxa4 {[%emt 0:01:44]} 25. g4 {[%emt 0:08:41]} Bg7 {[%emt 0:07:39]} 26. Ba3 {[%emt 0:02:16]} g5 {[%emt 0:05:35]} 27. Rbf1 {[%emt 0:05:21]} Rf8 {[%emt 0:02:14]} 28. Bd6 {[%emt 0:03:32]} Rf7 {[%emt 0:03:43]} 29. Nd2 {[%emt 0:04:31]} Ra2 {[%emt 0:01:40]} 30. Kg3 {[%emt 0:01:22]} Nc8 {[%emt 0:01:05]} 31. Bb4 {[%emt 0:01:33]} Bf8 {[%emt 0:00:56]} 32. Rxf7 {[%emt 0:01:33]} Qxf7 {[%emt 0:00:13]} 33. Rf1 {[%emt 0:00:15]} Qxf1 {[%emt 0:01:27]} 34. Nxf1 {[%emt 0:00:02]} Bxb4 {[%emt 0:00:19]} 35. Qb1 {[%emt 0:03:25]} Ra4 {[%emt 0:00:06]} 36. Kf3 {[%emt 0:01:17]} Ba5 {[%emt 0:01:33]} 37. Ng3 {[%emt 0:00:39]} Ra3 {[%emt 0:00:19]} 38. Qg6+ {[%emt 0:01:26]} Kd7 {[%emt 0:00:09]} 39. Qf7+ {[%emt 0:00:26]} Ne7 {[%emt 0:00:07]} 40. Nh5 {[%emt 0:00:00]} 1-0

[Event "Srdja Dragasevic Memorial-A 2024"]
[Site "Cetinje"]
[Date "2024.06.28"]
[Round "8.6"]
[White "Kalezic, Blazo"]
[Black "Skvortsov, Andrei"]
[Result "0-1"]
[ECO "B01"]
[WhiteElo "2398"]
[BlackElo "2331"]
[Annotator "RC"]
[PlyCount "140"]
[EventDate "2024.06.23"]
[EventType "swiss"]
[EventCountry "MNE"]
[SourceTitle "playchess.com"]
[Source "ChessBase"]
[SourceQuality "1"]
[TimeControl "40/5400+30:1800+30"]

1. e4 {[%emt 0:00:04]} d5 {[%emt 0:04:15]} 2. exd5 {[%emt 0:00:13]} Qxd5 {[%emt 0:00:09]} 3. Nc3 {[%emt 0:00:09]} Qe5+ {[%emt 0:00:03]} 4. Be2 {[%emt 0:00:10]} Bg4 {[%emt 0:00:02]} 5. d4 {[%emt 0:00:08]} Bxe2 {[%emt 0:00:03]} 6. Ngxe2 {[%emt 0:00:08]} Qa5 {[%emt 0:00:03]} 7. O-O {[%emt 0:00:19]} Nf6 {[%emt 0:00:02]} 8. b4 {[%emt 0:01:00]} Qf5 {[%emt 0:00:05]} 9. Ng3 {[%emt 0:13:06]} Qg4 {[%emt 0:00:39]} 10. Qxg4 {[%emt 0:06:19]} Nxg4 {[%emt 0:00:03]} 11. Nce4 {[%emt 0:00:56]} Nd7 {[%emt 0:08:41]} 12. Bf4 {[%emt 0:05:09]} e5 {[%emt 0:03:32]} 13. dxe5 {[%emt 0:00:30]} Bxb4 {[%emt 0:00:08]} 14. Rab1 {[%emt 0:02:46]} Ba5 {[%emt 0:00:07]} 15. Rb5 {[%emt 0:01:23]} Bb6 {[%emt 0:00:24]} 16. h3 {[%emt 0:00:11]} Nh6 {[%emt 0:02:56]} 17. Rd1 {[%emt 0:07:41]} O-O-O {[%emt 0:04:53]} 18. Rbd5 {[%emt 0:06:54]} Nc5 {[%emt 0:05:20]} 19. Nxc5 {[%emt 0:04:05]} Bxc5 {[%emt 0:00:26]} 20. Ne4 {[%emt 0:00:24]} Rxd5 {[%emt 0:03:40]} 21. Rxd5 {[%emt 0:00:08]} Be7 {[%emt 0:00:08]} 22. Bxh6 {[%emt 0:00:30]} gxh6 {[%emt 0:00:01]} 23. f4 {[%emt 0:04:32]} Re8 {[%emt 0:02:55]} 24. Kf2 {[%emt 0:01:14]} b6 {[%emt 0:01:57]} 25. Kf3 {[%emt 0:00:44]} Ba3 {[%emt 0:04:28]} 26. g4 {[%emt 0:08:50]} Re6 {[%emt 0:00:49]} 27. Ke2 {[%emt 0:03:14]} Bc1 {[%emt 0:15:58]} 28. Kf3 {[%emt 0:09:55]} Rc6 {[%emt 0:00:14]} 29. c3 {[%emt 0:00:23]} Ba3 {[%emt 0:01:55]} 30. h4 {[%emt 0:01:50]} Be7 {[%emt 0:00:36]} 31. h5 {[%emt 0:00:19]} a6 {[%emt 0:03:37]} 32. Ke2 {[%emt 0:03:21]} b5 {[%emt 0:01:05]} 33. Kd3 {[%emt 0:00:29]} Re6 {[%emt 0:04:40]} 34. f5 {[%emt 0:03:02]} Rb6 {[%emt 0:04:44]} 35. f6 {[%emt 0:00:32]} Bf8 {[%emt 0:00:04]} 36. g5 {[%emt 0:00:23]} Re6 {[%emt 0:00:12]} 37. Nc5 {[%emt 0:08:10]} Bxc5 {[%emt 0:08:20]} 38. g6 {[%emt 0:01:39]} hxg6 {[%emt 0:00:03]} 39. hxg6 {[%emt 0:00:06]} Bf8 {[%emt 0:00:19]} 40. g7 {[%emt 0:00:00]} Bxg7 {[%emt 0:00:00]} 41. fxg7 {[%emt 0:03:29]} Rg6 {[%emt 0:00:08]} 42. Ke4 {[%emt 0:00:14]} Rxg7 {[%emt 0:01:48]} 43. Rd3 {[%emt 0:03:37]} Rg4+ {[%emt 0:00:38]} 44. Kf5 {[%emt 0:00:20]} Rg6 {[%emt 0:00:11]} 45. a4 {[%emt 0:01:05]} bxa4 {[%emt 0:02:47]} 46. Rd4 {[%emt 0:00:12]} a3 {[%emt 0:00:25]} 47. Ra4 {[%emt 0:00:08]} Rc6 {[%emt 0:00:08]} 48. Rxa3 {[%emt 0:00:06]} Kd7 {[%emt 0:00:03]} 49. c4 {[%emt 0:01:49]} Ke7 {[%emt 0:03:44]} 50. Ra4 {[%emt 0:00:41]} Rg6 {[%emt 0:00:29]} 51. c5 {[%emt 0:00:52]} h5 {[%emt 0:01:24]} 52. Rh4 {[%emt 0:00:31]} Rh6 {[%emt 0:00:39]} 53. Kg5 {[%emt 0:00:38]} Rc6 {[%emt 0:00:39]} 54. Rxh5 {[%emt 0:01:18]} Rxc5 {[%emt 0:00:08]} 55. Kf4 {[%emt 0:00:07]} Rc6 {[%emt 0:00:42]} 56. Rh8 {[%emt 0:00:30]} Rc4+ {[%emt 0:07:45]} 57. Kf5 {[%emt 0:01:26]} a5 {[%emt 0:00:35]} 58. Ra8 {[%emt 0:00:17]} a4 {[%emt 0:02:48]} 59. Ra6 {[%emt 0:00:15]} Rh4 {[%emt 0:06:58]} 60. Kg5 {[%emt 0:01:06]} Rb4 {[%emt 0:00:09]} 61. Kf5 {[%emt 0:00:40]} Ke8 {[%emt 0:00:19]} 62. Ra8+ {[%emt 0:01:06]} Kd7 {[%emt 0:00:08]} 63. Rf8 {[%emt 0:00:56]} a3 {[%emt 0:02:44]} 64. Rxf7+ {[%emt 0:00:13]} Kc6 {[%emt 0:00:22]} 65. Rf6+ {[%emt 0:00:40]} Kb7 {[%emt 0:00:06]} 66. e6 {[%emt 0:00:07]} Rb5+ {[%emt 0:01:34]} 67. Kg6 {[%emt 0:01:53]} a2 {[%emt 0:00:24]} 68. Rf1 {[%emt 0:00:39]} Rb1 {[%emt 0:00:28]} 69. e7 {[%emt 0:00:09]} a1=Q {[%emt 0:00:15]} 70. e8=Q {[%emt 0:00:12]} Rb6+ {[%emt 0:00:50]} 0-1